[Event "Live Chess"]
[Site "Chess.com"]
[Date "2023.05.21"]
[Round "-"]
[White "Shepherds_Pie"]
[Black "Ocelot32"]
[Result "1-0"]
[WhiteElo "1916"]
[BlackElo "1370"]
[TimeControl "300"]
[EndTime "1:36:09 PDT"]
[Termination "Shepherds_Pie won by resignation"]

1. c4 {[%clk 0:04:57.3]} 1... c5 {[%clk 0:04:57.9]} 2. Nc3 {[%clk 0:04:56.1]}
2... Nf6 {[%clk 0:04:55.3]} 3. g3 {[%clk 0:04:55.1]} 3... e6 {[%clk 0:04:54.4]}
4. Nf3 {[%clk 0:04:53.8]} 4... Nc6 {[%clk 0:04:53.9]} 5. Bg2 {[%clk 0:04:52.7]}
5... Be7 {[%clk 0:04:53.2]} 6. O-O {[%clk 0:04:51.1]} 6... O-O {[%clk
0:04:52.3]} 7. d4 {[%clk 0:04:50.1]} 7... cxd4 {[%clk 0:04:50.9]} 8. Nxd4 {[%clk
0:04:49.2]} 8... Nxd4 {[%clk 0:04:46.7]} 9. Qxd4 {[%clk 0:04:47.9]} 9... Rb8
{[%clk 0:04:40.7]} 10. b3 {[%clk 0:04:45.1]} 10... b6 {[%clk 0:04:37.1]} 11. Bb2
{[%clk 0:04:43.1]} 11... Bb7 {[%clk 0:04:33]} 12. e4 {[%clk 0:04:42]} 12... Bc5
{[%clk 0:04:27.9]} 13. Qd3 {[%clk 0:04:39.8]} 13... Ng4 {[%clk 0:04:15.5]} 14.
h3 {[%clk 0:04:37.8]} 14... Nf6 {[%clk 0:04:13]} 15. Rad1 {[%clk 0:04:33.4]}
15... d5 {[%clk 0:04:10.2]} 16. cxd5 {[%clk 0:04:31.2]} 16... exd5 {[%clk
0:04:09.2]} 17. exd5 {[%clk 0:04:29.9]} 17... Qd6 {[%clk 0:04:07.2]} 18. Nb5
{[%clk 0:04:24.3]} 18... Qxg3 {[%clk 0:04:04.7]} 19. Qxg3 {[%clk 0:04:22.3]} 1-0

[Event "Live Chess"]
[Site "Chess.com"]
[Date "2023.05.21"]
[Round "-"]
[White "Doge_Dandolo"]
[Black "JohanKjeldahl"]
[Result "1/2-1/2"]
[WhiteElo "1885"]
[BlackElo "1904"]
[TimeControl "300"]
[EndTime "1:36:12 PDT"]
[Termination "Game drawn by repetition"]

1. Nf3 {[%clk 0:04:56]} 1... Nf6 {[%clk 0:04:57.5]} 2. c4 {[%clk 0:04:53.7]}
2... c5 {[%clk 0:04:54.6]} 3. g3 {[%clk 0:04:52.3]} 3... Nc6 {[%clk 0:04:53.2]}
4. d4 {[%clk 0:04:50]} 4... cxd4 {[%clk 0:04:51.4]} 5. Nxd4 {[%clk 0:04:48.5]}
5... e6 {[%clk 0:04:49.9]} 6. Nc3 {[%clk 0:04:45.5]} 6... a6 {[%clk 0:04:48.9]}
7. Bg2 {[%clk 0:04:42.6]} 7... Be7 {[%clk 0:04:47.7]} 8. Nb3 {[%clk 0:04:40.8]}
8... O-O {[%clk 0:04:46.1]} 9. c5 {[%clk 0:04:39.4]} 9... b5 {[%clk 0:04:37.3]}
10. cxb6 {[%clk 0:04:36.2]} 10... Qxb6 {[%clk 0:04:35.8]} 11. Be3 {[%clk
0:04:34.8]} 11... Qc7 {[%clk 0:04:29.5]} 12. Rc1 {[%clk 0:04:32.8]} 12... Bb7
{[%clk 0:04:27.8]} 13. O-O {[%clk 0:04:31.1]} 13... d5 {[%clk 0:04:23.7]} 14.
Na4 {[%clk 0:04:29.2]} 14... Nd7 {[%clk 0:04:06.7]} 15. Bf4 {[%clk 0:04:16.5]}
15... e5 {[%clk 0:04:02.9]} 16. Bd2 {[%clk 0:04:14.9]} 16... e4 {[%clk
0:03:47.1]} 17. Ba5 {[%clk 0:04:05.5]} 17... Qe5 {[%clk 0:03:40.7]} 18. Bc3
{[%clk 0:03:50.9]} 18... Qg5 {[%clk 0:03:34.6]} 19. h4 {[%clk 0:03:42.7]} 19...
Qh5 {[%clk 0:03:28.9]} 20. e3 {[%clk 0:03:36.6]} 20... Qxd1 {[%clk 0:03:22.1]}
21. Rfxd1 {[%clk 0:03:35.2]} 21... Nce5 {[%clk 0:03:18.6]} 22. Nac5 {[%clk
0:03:24.1]} 22... Nxc5 {[%clk 0:03:13.9]} 23. Nxc5 {[%clk 0:03:22.3]} 23... Bxc5
{[%clk 0:03:03.4]} 24. Bxe5 {[%clk 0:03:21.2]} 24... Bb6 {[%clk 0:03:00.3]} 25.
Bd4 {[%clk 0:03:18.7]} 25... Bxd4 {[%clk 0:02:57.6]} 26. Rxd4 {[%clk 0:03:17.6]}
26... Rac8 {[%clk 0:02:54.7]} 27. Rcd1 {[%clk 0:03:15.2]} 27... Rc2 {[%clk
0:02:48.1]} 28. R1d2 {[%clk 0:03:12.8]} 28... Rfc8 {[%clk 0:02:45.9]} 29. Bh3
{[%clk 0:03:10.2]} 29... Rxd2 {[%clk 0:02:39]} 30. Rxd2 {[%clk 0:03:08.4]} 30...
Rc5 {[%clk 0:02:34.7]} 31. Bf5 {[%clk 0:03:02.5]} 31... g6 {[%clk 0:02:32.1]}
32. Bg4 {[%clk 0:02:58.6]} 32... Kf8 {[%clk 0:02:27.9]} 33. Bd1 {[%clk
0:02:54.7]} 33... Ke7 {[%clk 0:02:25.4]} 34. Bb3 {[%clk 0:02:53.2]} 34... Kd6
{[%clk 0:02:21.9]} 35. Kf1 {[%clk 0:02:51.3]} 35... Ke5 {[%clk 0:02:19.9]} 36.
Ke1 {[%clk 0:02:48.8]} 36... f5 {[%clk 0:02:17.9]} 37. Kd1 {[%clk 0:02:46.4]}
37... h6 {[%clk 0:02:16.8]} 38. Rd4 {[%clk 0:02:43.8]} 38... Bc6 {[%clk
0:02:09.9]} 39. Rb4 {[%clk 0:02:39.6]} 39... g5 {[%clk 0:02:01.9]} 40. hxg5
{[%clk 0:02:37.4]} 40... hxg5 {[%clk 0:02:00.3]} 41. Rb6 {[%clk 0:02:36.1]}
41... d4 {[%clk 0:01:43.3]} 42. exd4+ {[%clk 0:02:27]} 42... Kxd4 {[%clk
0:01:41.1]} 43. Kd2 {[%clk 0:02:24.8]} 43... f4 {[%clk 0:01:39.8]} 44. gxf4
{[%clk 0:02:23.2]} 44... gxf4 {[%clk 0:01:38]} 45. Rb8 {[%clk 0:02:21.6]} 45...
e3+ {[%clk 0:01:36.5]} 46. fxe3+ {[%clk 0:02:19.9]} 46... fxe3+ {[%clk
0:01:35.2]} 47. Ke1 {[%clk 0:02:15.3]} 47... Rc1+ {[%clk 0:01:26.9]} 48. Bd1
{[%clk 0:02:13.5]} 48... Bf3 {[%clk 0:01:20.7]} 49. Rd8+ {[%clk 0:02:12.2]}
49... Ke4 {[%clk 0:01:15.5]} 50. Re8+ {[%clk 0:02:10.7]} 50... Kd4 {[%clk
0:01:11.8]} 51. Rd8+ {[%clk 0:02:09.3]} 51... Ke4 {[%clk 0:01:04.3]} 52. Re8+
{[%clk 0:02:07.9]} 52... Kd4 {[%clk 0:01:03.3]} 53. Rd8+ {[%clk 0:02:06.9]}
1/2-1/2

[Event "Live Chess"]
[Site "Chess.com"]
[Date "2023.05.21"]
[Round "-"]
[White "AbilifyXL"]
[Black "chessfiction"]
[Result "0-1"]
[WhiteElo "1948"]
[BlackElo "2330"]
[TimeControl "300"]
[EndTime "1:36:20 PDT"]
[Termination "chessfiction won by resignation"]

1. d4 {[%clk 0:04:56.3]} 1... d5 {[%clk 0:04:59]} 2. c4 {[%clk 0:04:55.8]} 2...
e5 {[%clk 0:04:58.4]} 3. Nc3 {[%clk 0:04:54.5]} 3... exd4 {[%clk 0:04:57.5]} 4.
Qxd4 {[%clk 0:04:53.6]} 4... Nc6 {[%clk 0:04:57.4]} 5. Qe3+ {[%clk 0:04:52.8]}
5... Be6 {[%clk 0:04:57.3]} 6. cxd5 {[%clk 0:04:51]} 6... Nb4 {[%clk 0:04:56.5]}
7. Qd2 {[%clk 0:04:43.1]} 7... Nxd5 {[%clk 0:04:51.6]} 8. Nxd5 {[%clk 0:04:41]}
8... Bxd5 {[%clk 0:04:51.5]} 9. Nf3 {[%clk 0:04:39.6]} 9... a5 {[%clk
0:04:47.4]} 10. a3 {[%clk 0:04:38.6]} 10... Nf6 {[%clk 0:04:46.5]} 11. e3 {[%clk
0:04:37.1]} 11... Ne4 {[%clk 0:04:44.2]} 12. Qc2 {[%clk 0:04:36.1]} 12... Bd6
{[%clk 0:04:42.4]} 13. Bd3 {[%clk 0:04:34.9]} 13... Qe7 {[%clk 0:04:40.5]} 14.
O-O {[%clk 0:04:33.7]} 14... O-O {[%clk 0:04:39.2]} 15. Be2 {[%clk 0:04:26.1]}
15... f5 {[%clk 0:04:36.3]} 16. Bd2 {[%clk 0:04:24.9]} 16... Rf6 {[%clk
0:04:34.4]} 17. Bc3 {[%clk 0:04:23.2]} 17... Rh6 {[%clk 0:04:31.4]} 18. Rad1
{[%clk 0:04:21.2]} 18... c6 {[%clk 0:04:26.4]} 19. g3 {[%clk 0:04:15.7]} 19...
Qf7 {[%clk 0:04:21.1]} 20. Nd2 {[%clk 0:03:48.7]} 20... Ng5 {[%clk 0:04:16]} 21.
f3 {[%clk 0:03:37.4]} 21... Qh5 {[%clk 0:04:11.5]} 22. Rf2 {[%clk 0:03:30.5]}
22... Bxg3 {[%clk 0:04:08.9]} 0-1

[Event "Live Chess"]
[Site "Chess.com"]
[Date "2023.05.21"]
[Round "-"]
[White "Ian-Morley"]
[Black "SimonB4a"]
[Result "0-1"]
[WhiteElo "1053"]
[BlackElo "2196"]
[TimeControl "300"]
[EndTime "1:36:38 PDT"]
[Termination "SimonB4a won by resignation"]

1. e4 {[%clk 0:04:58.1]} 1... e6 {[%clk 0:04:58.4]} 2. d4 {[%clk 0:04:52.7]}
2... d5 {[%clk 0:04:57]} 3. e5 {[%clk 0:04:52.1]} 3... c5 {[%clk 0:04:55.8]} 4.
Nd2 {[%clk 0:04:51.5]} 4... cxd4 {[%clk 0:04:53.7]} 5. Bb5+ {[%clk 0:04:50.3]}
5... Bd7 {[%clk 0:04:52.2]} 6. Bxd7+ {[%clk 0:04:49.4]} 6... Nxd7 {[%clk
0:04:50.8]} 7. Qe2 {[%clk 0:04:48.8]} 7... Qc7 {[%clk 0:04:46.7]} 8. Qd3 {[%clk
0:04:40.8]} 8... Qxe5+ {[%clk 0:04:40.3]} 9. Ne2 {[%clk 0:04:39.6]} 9... Ngf6
{[%clk 0:04:25.4]} 10. Qxd4 {[%clk 0:04:36.9]} 10... Bc5 {[%clk 0:04:19.8]} 11.
Qxe5 {[%clk 0:04:35.2]} 11... Nxe5 {[%clk 0:04:16.6]} 12. Nf3 {[%clk 0:04:29.2]}
12... Nxf3+ {[%clk 0:04:14.3]} 13. gxf3 {[%clk 0:04:28.4]} 13... Rc8 {[%clk
0:04:13.1]} 14. c3 {[%clk 0:04:26.5]} 14... O-O {[%clk 0:04:11.4]} 15. Be3
{[%clk 0:04:25.5]} 15... Bxe3 {[%clk 0:04:09.1]} 16. fxe3 {[%clk 0:04:24.7]}
16... e5 {[%clk 0:04:04.4]} 17. O-O-O {[%clk 0:04:23.5]} 17... Rfd8 {[%clk
0:04:02.4]} 18. h4 {[%clk 0:04:15.8]} 18... h6 {[%clk 0:03:58.9]} 19. Ng3 {[%clk
0:04:08.9]} 19... d4 {[%clk 0:03:55.6]} 20. exd4 {[%clk 0:04:06]} 20... exd4
{[%clk 0:03:54.2]} 21. Nf5 {[%clk 0:04:05.1]} 21... dxc3 {[%clk 0:03:52.3]} 22.
Ne7+ {[%clk 0:04:01]} 22... Kf8 {[%clk 0:03:46.9]} 23. Nxc8 {[%clk 0:03:45.8]}
23... cxb2+ {[%clk 0:03:44.9]} 24. Kxb2 {[%clk 0:03:44.4]} 24... Rxc8 {[%clk
0:03:43.7]} 25. Rc1 {[%clk 0:03:43.1]} 25... Rd8 {[%clk 0:03:36.5]} 26. Rhd1
{[%clk 0:03:41.4]} 26... Rxd1 {[%clk 0:03:32.9]} 27. Rxd1 {[%clk 0:03:40.1]}
27... g5 {[%clk 0:03:31.6]} 28. hxg5 {[%clk 0:03:32.6]} 28... hxg5 {[%clk
0:03:30.2]} 29. Rd8+ {[%clk 0:03:28.2]} 29... Ke7 {[%clk 0:03:28.7]} 30. Rd1
{[%clk 0:03:23.7]} 30... Ke6 {[%clk 0:03:24.2]} 31. Kb3 {[%clk 0:03:21.1]} 31...
Nd5 {[%clk 0:03:21.2]} 32. Rh1 {[%clk 0:03:15.5]} 32... f5 {[%clk 0:03:12.9]}
33. Kc4 {[%clk 0:03:10.4]} 33... Ne3+ {[%clk 0:03:03.3]} 34. Kb5 {[%clk
0:03:06.1]} 34... Ke5 {[%clk 0:02:59.2]} 35. Re1 {[%clk 0:03:03.8]} 35... Kf4
{[%clk 0:02:58]} 36. a4 {[%clk 0:03:01.6]} 36... Kxf3 {[%clk 0:02:56.7]} 37. a5
{[%clk 0:03:00.3]} 37... g4 {[%clk 0:02:55.4]} 38. Rh1 {[%clk 0:02:46.1]} 38...
g3 {[%clk 0:02:53]} 39. Rh7 {[%clk 0:02:45.1]} 39... g2 {[%clk 0:02:51.2]} 40.
Rg7 {[%clk 0:02:38.4]} 40... Ng4 {[%clk 0:02:49.7]} 41. Rxb7 {[%clk 0:02:31.8]}
41... g1=Q {[%clk 0:02:47.3]} 42. Kc6 {[%clk 0:02:28.9]} 42... Qd4 {[%clk
0:02:40.9]} 43. Rb3+ {[%clk 0:02:26.1]} 43... Ke2 {[%clk 0:02:36.2]} 0-1

[Event "Live Chess"]
[Site "Chess.com"]
[Date "2023.05.21"]
[Round "-"]
[White "MaximKris"]
[Black "TheSmoulderingMaster"]
[Result "1-0"]
[WhiteElo "1818"]
[BlackElo "1686"]
[TimeControl "300"]
[EndTime "1:36:42 PDT"]
[Termination "MaximKris won - game abandoned"]

1. e4 {[%clk 0:04:59.1]} 1... c5 {[%clk 0:04:58.9]} 2. Nf3 {[%clk 0:04:58.4]}
2... d6 {[%clk 0:04:58]} 3. Bc4 {[%clk 0:04:57.6]} 3... Nc6 {[%clk 0:04:56.2]}
4. O-O {[%clk 0:04:57.1]} 4... Nf6 {[%clk 0:04:54.3]} 5. d4 {[%clk 0:04:56.6]}
5... cxd4 {[%clk 0:04:53.2]} 6. Nxd4 {[%clk 0:04:56.5]} 6... e6 {[%clk
0:04:52.3]} 7. Nxc6 {[%clk 0:04:55.6]} 7... bxc6 {[%clk 0:04:51.2]} 8. Nc3
{[%clk 0:04:55.3]} 8... Be7 {[%clk 0:04:49.7]} 9. Bg5 {[%clk 0:04:48.9]} 9...
O-O {[%clk 0:04:48.5]} 10. Re1 {[%clk 0:04:33]} 10... Nxe4 {[%clk 0:04:44.5]}
11. Bxe7 {[%clk 0:04:32.9]} 11... Nxc3 {[%clk 0:04:43.5]} 12. Bxd8 {[%clk
0:04:29.3]} 12... Nxd1 {[%clk 0:04:42.6]} 13. Be7 {[%clk 0:04:28.4]} 13... Re8
{[%clk 0:04:40.6]} 14. Bxd6 {[%clk 0:04:26.5]} 14... Nxb2 {[%clk 0:04:39.7]} 15.
Bb3 {[%clk 0:04:24.7]} 15... Ba6 {[%clk 0:04:30.7]} 16. Re4 {[%clk 0:04:21.6]}
16... Rad8 {[%clk 0:04:25.3]} 17. Ba3 {[%clk 0:04:13.9]} 1-0

[Event "Live Chess"]
[Site "Chess.com"]
[Date "2023.05.21"]
[Round "-"]
[White "FailsGambits"]
[Black "raminguy"]
[Result "0-1"]
[WhiteElo "1335"]
[BlackElo "1952"]
[TimeControl "300"]
[EndTime "1:36:43 PDT"]
[Termination "raminguy won on time"]

1. e4 {[%clk 0:04:58.9]} 1... e5 {[%clk 0:04:59.3]} 2. Nf3 {[%clk 0:04:58]} 2...
Nc6 {[%clk 0:04:59]} 3. d4 {[%clk 0:04:57.1]} 3... exd4 {[%clk 0:04:58.1]} 4.
Nxd4 {[%clk 0:04:57]} 4... Qf6 {[%clk 0:04:56.9]} 5. Be3 {[%clk 0:04:53.3]} 5...
Bc5 {[%clk 0:04:56.1]} 6. c3 {[%clk 0:04:52]} 6... Nge7 {[%clk 0:04:55.5]} 7.
Bb5 {[%clk 0:04:43.9]} 7... a6 {[%clk 0:04:44]} 8. Bxc6 {[%clk 0:04:42.1]} 8...
Nxc6 {[%clk 0:04:39.2]} 9. O-O {[%clk 0:04:34.5]} 9... O-O {[%clk 0:04:33]} 10.
Qd2 {[%clk 0:04:01.7]} 10... h6 {[%clk 0:04:29.3]} 11. Nxc6 {[%clk 0:03:59.5]}
11... Qxc6 {[%clk 0:04:26.4]} 12. Bxc5 {[%clk 0:03:50]} 12... Qxc5 {[%clk
0:04:24.6]} 13. Qd4 {[%clk 0:03:46.1]} 13... Qb5 {[%clk 0:04:13.6]} 14. b3
{[%clk 0:03:14.4]} 14... d6 {[%clk 0:04:09.8]} 15. Na3 {[%clk 0:03:06.6]} 15...
Qe8 {[%clk 0:04:06.7]} 16. Rfe1 {[%clk 0:02:50.2]} 16... Be6 {[%clk 0:04:02.7]}
17. Re3 {[%clk 0:02:26.1]} 17... Qd8 {[%clk 0:03:53]} 18. Rae1 {[%clk
0:02:19.9]} 18... Qg5 {[%clk 0:03:48.8]} 19. e5 {[%clk 0:02:04.6]} 19... dxe5
{[%clk 0:03:42.7]} 20. Qxe5 {[%clk 0:02:04.5]} 20... Qxe5 {[%clk 0:03:35.5]} 21.
Rxe5 {[%clk 0:02:04.4]} 21... Rad8 {[%clk 0:03:33.4]} 22. Nc2 {[%clk 0:01:48.2]}
22... Rd2 {[%clk 0:03:30]} 23. Nd4 {[%clk 0:01:28.3]} 23... Rxa2 {[%clk
0:03:16.1]} 24. Nxe6 {[%clk 0:01:26.3]} 24... fxe6 {[%clk 0:03:15.4]} 25. f3
{[%clk 0:01:12.6]} 25... Rc2 {[%clk 0:03:12.6]} 26. c4 {[%clk 0:01:02.4]} 26...
Rc3 {[%clk 0:03:10.7]} 27. R5e3 {[%clk 0:00:49]} 27... Rxe3 {[%clk 0:03:05]} 28.
Rxe3 {[%clk 0:00:48.9]} 28... Re8 {[%clk 0:03:03.7]} 29. Rd3 {[%clk 0:00:46]}
29... Re7 {[%clk 0:03:02.3]} 30. Rd8+ {[%clk 0:00:43.9]} 30... Kf7 {[%clk
0:03:01.3]} 31. Kf2 {[%clk 0:00:29]} 31... e5 {[%clk 0:02:59.6]} 32. Rd5 {[%clk
0:00:26.5]} 32... b6 {[%clk 0:02:55]} 33. b4 {[%clk 0:00:20.3]} 33... c6 {[%clk
0:02:52.5]} 34. Rd6 {[%clk 0:00:19.2]} 34... Re6 {[%clk 0:02:51.7]} 35. Rd7+
{[%clk 0:00:17.6]} 35... Kf6 {[%clk 0:02:51.1]} 36. Ra7 {[%clk 0:00:14.9]} 36...
b5 {[%clk 0:02:38.9]} 37. cxb5 {[%clk 0:00:09.4]} 37... axb5 {[%clk 0:02:36.1]}
38. Ra6 {[%clk 0:00:07.4]} 38... Rd6 {[%clk 0:02:34.5]} 39. Kg3 {[%clk
0:00:05.6]} 39... Ke6 {[%clk 0:02:32.8]} 40. Ra7 {[%clk 0:00:04.4]} 40... g6
{[%clk 0:02:30.2]} 41. Rg7 {[%clk 0:00:03.8]} 41... Kd5 {[%clk 0:02:29.2]} 42.
Rh7 {[%clk 0:00:02.9]} 42... h5 {[%clk 0:02:27.9]} 43. Rh6 {[%clk 0:00:01.5]}
43... Kc4 {[%clk 0:02:25.8]} 44. Rh7 {[%clk 0:00:00.4]} 44... Kxb4 {[%clk
0:02:24.5]} 0-1

[Event "Live Chess"]
[Site "Chess.com"]
[Date "2023.05.21"]
[Round "-"]
[White "KeithArkell"]
[Black "MartynColebrook"]
[Result "1-0"]
[WhiteElo "2516"]
[BlackElo "1097"]
[TimeControl "300"]
[EndTime "1:36:59 PDT"]
[Termination "KeithArkell won by resignation"]

1. d4 {[%clk 0:04:58.3]} 1... Nf6 {[%clk 0:04:52.2]} 2. Nf3 {[%clk 0:04:57.3]}
2... d6 {[%clk 0:04:48.9]} 3. c4 {[%clk 0:04:56.1]} 3... g6 {[%clk 0:04:47.7]}
4. Nc3 {[%clk 0:04:54.4]} 4... Bg7 {[%clk 0:04:46.5]} 5. g3 {[%clk 0:04:53.9]}
5... e5 {[%clk 0:04:43.2]} 6. dxe5 {[%clk 0:04:52.7]} 6... dxe5 {[%clk 0:04:42]}
7. Qxd8+ {[%clk 0:04:51.7]} 7... Kxd8 {[%clk 0:04:41.1]} 8. Nxe5 {[%clk
0:04:51.2]} 8... Ke7 {[%clk 0:04:32.8]} 9. Bg2 {[%clk 0:04:48.6]} 9... Ke6
{[%clk 0:04:28.1]} 10. Nd3 {[%clk 0:04:42.5]} 10... Nc6 {[%clk 0:04:24.1]} 11.
Nd5 {[%clk 0:04:38]} 11... Nd4 {[%clk 0:04:17.7]} 12. N3f4+ {[%clk 0:04:28.3]}
12... Kd7 {[%clk 0:04:06.2]} 13. O-O {[%clk 0:04:26.6]} 13... Nxd5 {[%clk
0:03:58.7]} 14. Bxd5 {[%clk 0:04:20]} 14... f5 {[%clk 0:03:51.5]} 15. Rb1 {[%clk
0:04:12.5]} 15... Re8 {[%clk 0:03:41.2]} 16. e3 {[%clk 0:04:11.4]} 16... c6
{[%clk 0:03:28.7]} 17. Bg2 {[%clk 0:04:07.6]} 17... Ne6 {[%clk 0:03:20.3]} 18.
Nxe6 {[%clk 0:04:06.4]} 18... Rxe6 {[%clk 0:03:17.9]} 19. Rd1+ {[%clk
0:04:05.2]} 19... Ke7 {[%clk 0:03:16.4]} 20. Bd2 {[%clk 0:04:03.9]} 20... Bd7
{[%clk 0:03:10.3]} 21. Bb4+ {[%clk 0:04:02.7]} 21... Ke8 {[%clk 0:03:04.4]} 22.
Rd2 {[%clk 0:03:58.2]} 22... b6 {[%clk 0:02:40.3]} 23. Rbd1 {[%clk 0:03:54.7]}
23... Rd8 {[%clk 0:02:32.8]} 24. Bd6 {[%clk 0:03:43.3]} 24... c5 {[%clk
0:02:22.3]} 25. Bc7 {[%clk 0:03:41.1]} 1-0

[Event "Live Chess"]
[Site "Chess.com"]
[Date "2023.05.21"]
[Round "-"]
[White "skorpion49"]
[Black "MarkLim1"]
[Result "0-1"]
[WhiteElo "1755"]
[BlackElo "1710"]
[TimeControl "300"]
[EndTime "1:37:10 PDT"]
[Termination "MarkLim1 won by resignation"]

1. e4 {[%clk 0:04:58.6]} 1... e6 {[%clk 0:04:58.5]} 2. d4 {[%clk 0:04:57.1]}
2... d5 {[%clk 0:04:58]} 3. e5 {[%clk 0:04:55.8]} 3... c5 {[%clk 0:04:56.6]} 4.
c3 {[%clk 0:04:55.1]} 4... Nc6 {[%clk 0:04:56.1]} 5. Nf3 {[%clk 0:04:53.8]} 5...
Nge7 {[%clk 0:04:55.6]} 6. Be2 {[%clk 0:04:52.3]} 6... Nf5 {[%clk 0:04:53.9]} 7.
g4 {[%clk 0:04:50.5]} 7... Nh4 {[%clk 0:04:52.2]} 8. Bf4 {[%clk 0:04:33.4]} 8...
Nxf3+ {[%clk 0:04:49.6]} 9. Bxf3 {[%clk 0:04:32.3]} 9... cxd4 {[%clk 0:04:48.9]}
10. cxd4 {[%clk 0:04:30.5]} 10... Qb6 {[%clk 0:04:48.1]} 11. O-O {[%clk
0:04:18.2]} 11... Qxb2 {[%clk 0:04:42]} 12. Be3 {[%clk 0:03:34.1]} 12... Qxa1
{[%clk 0:04:37.5]} 13. Qc2 {[%clk 0:03:32.8]} 13... Nb4 {[%clk 0:04:23.1]} 14.
Qa4+ {[%clk 0:03:29.6]} 14... Bd7 {[%clk 0:04:19.4]} 0-1

[Event "Live Chess"]
[Site "Chess.com"]
[Date "2023.05.21"]
[Round "-"]
[White "JoeyCage"]
[Black "Biranidun"]
[Result "1/2-1/2"]
[WhiteElo "2312"]
[BlackElo "2538"]
[TimeControl "300"]
[EndTime "1:37:12 PDT"]
[Termination "Game drawn by repetition"]

1. e4 {[%clk 0:04:58.3]} 1... c5 {[%clk 0:04:57.5]} 2. Nf3 {[%clk 0:04:56.5]}
2... d6 {[%clk 0:04:57]} 3. d4 {[%clk 0:04:52.8]} 3... cxd4 {[%clk 0:04:56.9]}
4. Nxd4 {[%clk 0:04:52.5]} 4... Nf6 {[%clk 0:04:56.6]} 5. Nc3 {[%clk 0:04:51.4]}
5... g6 {[%clk 0:04:56.4]} 6. g3 {[%clk 0:04:50.1]} 6... Bg7 {[%clk 0:04:55.8]}
7. Bg2 {[%clk 0:04:49.3]} 7... Nc6 {[%clk 0:04:55]} 8. Nxc6 {[%clk 0:04:40.7]}
8... bxc6 {[%clk 0:04:54.1]} 9. e5 {[%clk 0:04:39.7]} 9... Nd5 {[%clk
0:04:41.9]} 10. Nxd5 {[%clk 0:04:37.8]} 10... cxd5 {[%clk 0:04:41.1]} 11. Qxd5
{[%clk 0:04:35.6]} 11... Rb8 {[%clk 0:04:38.1]} 12. exd6 {[%clk 0:04:30.7]}
12... O-O {[%clk 0:04:29.6]} 13. O-O {[%clk 0:04:25.8]} 13... Be6 {[%clk
0:04:28.5]} 14. Qd3 {[%clk 0:04:14.8]} 14... exd6 {[%clk 0:04:25.7]} 15. c3
{[%clk 0:04:07.8]} 15... Qc7 {[%clk 0:04:23]} 16. Rd1 {[%clk 0:04:03.9]} 16...
Rb6 {[%clk 0:04:20.8]} 17. Be3 {[%clk 0:03:52.2]} 17... Rxb2 {[%clk 0:04:18.7]}
18. Qxd6 {[%clk 0:03:50.7]} 18... Qxc3 {[%clk 0:04:14.4]} 19. Bd4 {[%clk
0:03:38.4]} 19... Bxd4 {[%clk 0:04:12.3]} 20. Qxd4 {[%clk 0:03:36.8]} 20... Qxd4
{[%clk 0:03:58.7]} 21. Rxd4 {[%clk 0:03:35.4]} 21... Rc8 {[%clk 0:03:58.6]} 22.
a4 {[%clk 0:03:29.2]} 22... Rcc2 {[%clk 0:03:57]} 23. Rf4 {[%clk 0:03:27.9]}
23... g5 {[%clk 0:03:49.8]} 24. Rf3 {[%clk 0:03:19.7]} 24... Bg4 {[%clk
0:03:46.5]} 25. Rf6 {[%clk 0:03:10.8]} 25... Kg7 {[%clk 0:03:38.9]} 26. Ra6
{[%clk 0:03:06.3]} 26... Rxf2 {[%clk 0:03:37]} 27. Bd5 {[%clk 0:03:05]} 27...
Be6 {[%clk 0:03:12.7]} 28. Bxe6 {[%clk 0:02:56.4]} 28... Rg2+ {[%clk 0:03:11.8]}
29. Kf1 {[%clk 0:02:52.8]} 29... fxe6 {[%clk 0:03:05.8]} 30. Rxa7+ {[%clk
0:02:51.2]} 30... Kg6 {[%clk 0:03:03.6]} 31. Re7 {[%clk 0:02:45.8]} 31... Rxh2
{[%clk 0:03:01]} 32. Kg1 {[%clk 0:02:41.5]} 32... Rbg2+ {[%clk 0:02:59.3]} 33.
Kf1 {[%clk 0:02:40.2]} 33... Kf6 {[%clk 0:02:44.8]} 34. Rxh7 {[%clk 0:02:27.9]}
34... Rf2+ {[%clk 0:02:44]} 35. Kg1 {[%clk 0:02:25.4]} 35... Rhg2+ {[%clk
0:02:42.8]} 36. Kh1 {[%clk 0:02:23.9]} 36... Kg6 {[%clk 0:02:29.8]} 37. Rh3
{[%clk 0:02:17.7]} 37... g4 {[%clk 0:02:26.9]} 38. Rh4 {[%clk 0:02:14.7]} 38...
Rxg3 {[%clk 0:02:22.1]} 39. a5 {[%clk 0:02:12.9]} 39... Kg5 {[%clk 0:02:06.6]}
40. Rh8 {[%clk 0:02:10]} 40... Rff3 {[%clk 0:02:05.9]} 41. Rg8+ {[%clk
0:02:00.4]} 41... Kh5 {[%clk 0:02:04.3]} 42. Rh8+ {[%clk 0:01:58]} 42... Kg6
{[%clk 0:02:03.6]} 43. Rg8+ {[%clk 0:01:56]} 43... Kf7 {[%clk 0:02:02.2]} 44.
Rg5 {[%clk 0:01:53.9]} 44... Kf6 {[%clk 0:01:14.9]} 45. Rg8 {[%clk 0:01:51.8]}
45... Ra3 {[%clk 0:00:56.2]} 46. Rxa3 {[%clk 0:01:37.9]} 46... Rxa3 {[%clk
0:00:56.1]} 47. Rxg4 {[%clk 0:01:37]} 47... Kf5 {[%clk 0:00:55.5]} 48. Rh4
{[%clk 0:01:33.8]} 48... e5 {[%clk 0:00:53.7]} 49. Kg2 {[%clk 0:01:27.8]} 49...
Rxa5 {[%clk 0:00:50.1]} 50. Kf2 {[%clk 0:01:26]} 50... Ra2+ {[%clk 0:00:48.2]}
51. Ke3 {[%clk 0:01:23.6]} 51... Ra3+ {[%clk 0:00:47.3]} 52. Ke2 {[%clk
0:01:22.3]} 52... e4 {[%clk 0:00:46.7]} 53. Rh8 {[%clk 0:01:20]} 53... Kf4
{[%clk 0:00:44.3]} 54. Rf8+ {[%clk 0:01:18.6]} 54... Ke5 {[%clk 0:00:43.5]} 55.
Re8+ {[%clk 0:01:17.6]} 55... Kd5 {[%clk 0:00:42.9]} 56. Rd8+ {[%clk 0:01:16.9]}
56... Ke5 {[%clk 0:00:42.4]} 57. Re8+ {[%clk 0:01:16]} 57... Kd5 {[%clk
0:00:42]} 58. Rd8+ {[%clk 0:01:15.3]} 58... Ke5 {[%clk 0:00:41.6]} 59. Re8+
{[%clk 0:01:14.5]} 1/2-1/2